bitfinex/quotes_BTCUSD_20251230
["timestamp","ask_amount","ask_price","bid_price","bid_amount"]
[1767085837723,0.01138057,87869.0,87857.0,0.01138213]
[1767085837932,0.01138057,87869.0,87858.0,0.011382]
[1767085838326,0.02278044,87870.0,87859.0,0.51364065]
[1767085838742,0.01138057,87869.0,87856.0,0.01138226]
[1767085838976,0.01133856,87869.0,87860.0,0.51364065]
[1767085839185,0.02278044,87870.0,87860.0,0.51364065]
[1767085839590,0.00990346,87869.0,87860.0,0.51364065]
[1767085839782,0.02278044,87870.0,87860.0,0.51364065]
[1767085841349,0.0114,87870.0,87860.0,0.51364065]
[1767085841560,0.02278044,87870.0,87860.0,0.51364065]
[1767085841762,0.01138057,87869.0,87858.0,0.011382]
[1767085842075,0.0114,87870.0,87860.0,0.51364065]
[1767085842532,0.0114,87870.0,87860.0,0.52502239]
[1767085842742,0.0114,87870.0,87860.0,0.01138174]
[1767085843290,0.0114,87870.0,87864.0,0.01138122]
[1767085843468,0.0001479,87873.0,87864.0,0.01138122]
[1767085843469,0.0114,87869.0,87865.0,0.01138109]
[1767085843675,0.010851,87869.0,87864.0,0.01138122]
[1767085844061,0.010851,87869.0,87865.0,0.01138109]
[1767085844261,0.010851,87869.0,87864.0,0.01138122]
[1767085845403,0.010851,87869.0,87865.0,0.01138109]
[1767085847424,0.010851,87869.0,87863.0,0.01138135]
[1767085848028,0.010851,87869.0,87864.0,0.01138122]
[1767085848279,0.0001479,87873.0,87866.0,0.01138096]
[1767085848479,0.0001479,87873.0,87865.0,0.01138109]
[1767085849263,0.0001479,87873.0,87860.0,0.52494888]
[1767085849523,0.0001479,87873.0,87863.0,0.01138135]
[1767085849675,0.0001479,87873.0,87862.0,0.01138148]
[1767085849896,0.01138031,87871.0,87860.0,0.51356714]
[1767085850060,0.000549,87862.0,87859.0,0.01138187]
[1767085850435,0.01138044,87870.0,87859.0,0.01138187]
[1767085850710,0.01138031,87871.0,87859.0,0.01138187]
[1767085851939,0.000549,87859.0,87852.0,0.03418278]
[1767085852134,8.56e-05,87859.0,87853.0,0.0114]
[1767085852259,8.56e-05,87859.0,87853.0,0.010851]
[1767085852917,8.56e-05,87859.0,87851.0,0.0113829]
[1767085853127,8.56e-05,87859.0,87849.0,0.01138316]
[1767085853323,8.56e-05,87859.0,87850.0,0.01138303]
[1767085853953,8.56e-05,87859.0,87849.0,0.01138316]
[1767085854101,8.56e-05,87859.0,87850.0,0.01138303]
[1767085854541,8.56e-05,87859.0,87851.0,0.0113829]
[1767085856078,8.56e-05,87859.0,87850.0,0.01138303]
[1767085856224,8.56e-05,87859.0,87851.0,0.0113829]
[1767085856428,8.56e-05,87859.0,87849.0,0.01138316]
[1767085857012,8.56e-05,87859.0,87850.0,0.01138303]
[1767085857149,8.56e-05,87859.0,87849.0,0.01138316]
[1767085857351,8.56e-05,87859.0,87848.0,0.0114]
[1767085857554,8.56e-05,87859.0,87845.0,0.00053756]
[1767085857555,0.00055,87848.0,87845.0,0.00053756]
[1767085857754,0.01138329,87848.0,87845.0,0.00053756]
[1767085857956,0.06829984,87848.0,87845.0,0.00053756]
[1767085858709,0.01138329,87848.0,87845.0,0.00053756]
[1767085860100,0.0114,87847.0,87845.0,0.00053756]
[1767085861587,0.05691778,87846.0,87845.0,1e-08]
[1767085861851,0.01138407,87842.0,87833.0,0.0003479]
[1767085861991,0.01138485,87836.0,87833.0,0.0003479]
[1767085862580,0.01138472,87837.0,87833.0,0.0003479]
[1767085863036,0.02278459,87838.0,87833.0,0.0003479]
[1767085864738,0.01138472,87837.0,87833.0,0.0003479]
[1767085865328,0.01138485,87836.0,87833.0,0.0003479]
[1767085866209,0.01138511,87834.0,87822.0,0.01138666]
[1767085866412,0.05693091,87826.0,87814.0,0.0114]
[1767085866606,0.05692905,87829.0,87816.0,0.01153534]
[1767085866607,0.02278576,87829.0,87816.0,0.01153534]
[1767085866845,0.01138589,87828.0,87816.0,0.01153534]
[1767085867048,0.02278576,87829.0,87817.0,0.01138731]
[1767085867427,0.02278576,87829.0,87818.0,0.01138718]
[1767085867607,0.02278576,87829.0,87819.0,0.00055826]
[1767085868051,0.0114,87829.0,87819.0,0.00055826]
[1767085868455,0.02278576,87829.0,87819.0,0.00055826]
[1767085868649,0.0114,87829.0,87819.0,0.00055826]
[1767085869079,0.01138589,87828.0,87819.0,0.00055826]
[1767085869354,0.01138602,87827.0,87819.0,0.00055826]
[1767085869554,0.01138589,87828.0,87819.0,0.00055826]
[1767085869768,0.0114,87829.0,87819.0,0.00055826]
[1767085870409,0.02278576,87829.0,87819.0,0.00055826]
[1767085871178,0.0114,87829.0,87819.0,0.00055826]
[1767085873344,0.0114,87829.0,87819.0,0.01194531]
[1767085873634,0.02278576,87829.0,87819.0,0.00055826]
[1767085873835,0.0114,87829.0,87819.0,0.00055826]
[1767085874043,0.0114,87829.0,87819.0,0.01194531]
[1767085874263,0.0114,87829.0,87821.0,0.01138679]
[1767085874452,0.04556,87845.0,87830.0,0.05692815]
[1767085874646,0.0114,87844.0,87832.0,0.01138537]
[1767085874857,0.0114,87844.0,87835.0,0.0002]
[1767085875170,0.0114,87843.0,87835.0,0.0002]
[1767085875492,0.02278394,87843.0,87835.0,0.0002]
[1767085875668,0.0114,87843.0,87835.0,0.0002]
[1767085875882,0.02278394,87843.0,87835.0,0.0002]
[1767085876589,0.0114,87843.0,87835.0,0.0002]
[1767085876787,0.0114,87843.0,87835.0,0.01158498]
[1767085876986,0.010851,87843.0,87836.0,0.01138485]
[1767085877354,0.010851,87843.0,87835.0,0.01158498]
[1767085877355,0.010851,87843.0,87835.0,0.0002]
[1767085877753,0.010851,87843.0,87835.0,0.01158498]
[1767085878067,0.010851,87843.0,87836.0,0.01138485]
[1767085879458,0.010851,87843.0,87837.0,0.01138472]
[1767085879660,0.010851,87843.0,87836.0,0.01138485]
[1767085879860,0.010851,87843.0,87835.0,0.01158498]
[1767085881402,0.010851,87843.0,87836.0,0.01138485]
[1767085881622,0.010851,87843.0,87835.0,0.0002]
[1767085881769,0.02223494,87843.0,87835.0,0.0002]
[1767085882135,0.010851,87843.0,87835.0,0.0002]
[1767085882491,0.02223494,87843.0,87835.0,0.0002]
[1767085882669,0.01138407,87842.0,87835.0,0.0002]
[1767085882853,0.010851,87843.0,87835.0,0.0002]
[1767085884035,0.07915489,87843.0,87835.0,0.0002]
[1767085884237,0.0113842,87841.0,87835.0,0.0002]
[1767085886322,0.01138446,87839.0,87827.0,0.01138602]
[1767085886729,0.01138433,87840.0,87828.0,0.01138589]
[1767085886926,0.01138446,87839.0,87828.0,0.01138589]
[1767085887243,0.01138433,87840.0,87828.0,0.01138589]
[1767085887549,0.01138433,87840.0,87829.0,0.01138576]
[1767085887773,0.0113842,87841.0,87829.0,0.01138576]
[1767085887954,0.02223494,87843.0,87830.0,0.01138563]
[1767085888151,0.01138407,87842.0,87830.0,0.01138563]
[1767085888515,0.01138407,87842.0,87831.0,0.0113855]
[1767085888725,0.06830457,87842.0,87829.0,0.01138576]
[1767085888902,0.0113842,87841.0,87829.0,0.01138576]
[1767085889768,0.01138433,87840.0,87828.0,0.01138589]
[1767085890494,0.000349,87828.0,87821.0,0.01138679]
[1767085890733,0.01138511,87834.0,87821.0,0.01138679]
[1767085890734,0.01138511,87834.0,87822.0,0.01138666]
[1767085890935,0.0113855,87831.0,87819.0,0.00055826]
[1767085891392,0.0113855,87831.0,87819.0,0.01194531]
[1767085891577,0.01138511,87834.0,87821.0,0.01138679]
[1767085891797,0.01138524,87833.0,87821.0,0.01138679]
[1767085892348,0.01138537,87832.0,87821.0,0.01138679]
[1767085892570,0.01138524,87833.0,87821.0,0.01138679]
[1767085892773,0.01138524,87833.0,87820.0,0.51356714]
[1767085892774,0.01138563,87830.0,87820.0,0.51356714]
[1767085892914,0.0113855,87831.0,87820.0,0.52495406]
[1767085893317,0.01138537,87832.0,87820.0,0.52495406]
[1767085893517,0.06831273,87832.0,87820.0,0.51356714]
[1767085893721,0.01138563,87830.0,87820.0,0.51356714]
[1767085893947,0.01138576,87829.0,87819.0,0.00055826]
[1767085894121,0.01138589,87828.0,87819.0,0.00055826]
[1767085894322,0.01138602,87827.0,87819.0,0.00055826]
[1767085894532,0.02278602,87827.0,87819.0,0.00055826]
[1767085894730,0.0114,87827.0,87819.0,0.00055826]
[1767085895588,0.02278602,87827.0,87819.0,0.00055826]
[1767085895970,0.0114,87827.0,87819.0,0.00055826]
[1767085897834,0.01138627,87825.0,87819.0,0.00055826]
[1767085898196,0.02278602,87827.0,87819.0,0.00055826]
[1767085898826,0.01138614,87826.0,87819.0,0.00055826]
[1767085899028,0.0113864,87824.0,87819.0,0.00055826]
[1767085899230,0.01138653,87823.0,87819.0,0.00055826]
[1767085899767,0.01138666,87822.0,87819.0,0.00055826]
[1767085899929,0.01138653,87823.0,87819.0,0.00055826]
[1767085900385,0.01138627,87825.0,87819.0,0.00055826]
[1767085900970,0.01138614,87826.0,87819.0,0.00055826]
[1767085901927,0.0113864,87824.0,87819.0,0.00055826]
[1767085902103,0.01138627,87825.0,87819.0,0.00055826]
[1767085902623,0.01138614,87826.0,87819.0,0.00055826]
[1767085903303,0.02278602,87827.0,87819.0,0.00055826]
[1767085903632,0.01138614,87826.0,87819.0,0.00055826]
[1767085903970,0.01138627,87825.0,87819.0,0.00055826]
[1767085904186,0.01138614,87826.0,87819.0,0.00055826]
[1767085904615,0.02278602,87827.0,87819.0,0.00055826]
[1767085904821,0.01138614,87826.0,87819.0,0.00055826]
[1767085905471,0.01138627,87825.0,87819.0,0.00055826]
[1767085905721,0.0113864,87824.0,87819.0,0.00055826]
[1767085905871,0.01138653,87823.0,87819.0,0.00055826]
[1767085906666,0.01138666,87822.0,87819.0,0.00055826]
[1767085907321,0.01138666,87822.0,87809.0,0.03207884]
[1767085907322,0.01138757,87815.0,87809.0,0.01599341]
[1767085907535,0.0113877,87814.0,87809.0,0.01610081]
[1767085907730,0.01138744,87816.0,87809.0,0.01610081]
[1767085908137,0.07972236,87819.0,87809.0,0.01610081]
[1767085908343,0.05693658,87817.0,87809.0,0.01610081]
[1767085908573,0.01138757,87815.0,87809.0,0.01610081]
[1767085909435,0.0113877,87814.0,87809.0,0.01610081]
[1767085910049,0.01138744,87816.0,87814.0,0.000549]
[1767085910290,0.02278705,87819.0,87814.0,0.000549]
[1767085910814,0.0114,87819.0,87809.0,0.53019711]
[1767085911044,0.02223705,87819.0,87809.0,0.53019711]
[1767085911257,0.01085,87819.0,87809.0,0.53019711]
[1767085911476,0.02223705,87819.0,87809.0,0.53019711]
[1767085911908,0.01085,87819.0,87809.0,0.53019711]
[1767085912970,0.02223705,87819.0,87809.0,0.53019711]
[1767085913182,0.01085,87819.0,87809.0,0.53019711]
[1767085913812,0.01085,87819.0,87810.0,0.01138822]
[1767085914019,0.01085,87819.0,87809.0,0.54158546]
[1767085914235,0.01085,87819.0,87809.0,0.53019711]
[1767085914439,0.02223705,87819.0,87809.0,0.53019711]
[1767085914640,0.01138731,87817.0,87809.0,0.53019711]
[1767085914842,0.01138731,87817.0,87809.0,0.01610081]
[1767085915408,0.02223705,87819.0,87809.0,0.01610081]
[1767085915580,0.01138731,87817.0,87809.0,0.53019711]
[1767085915832,0.02223705,87819.0,87809.0,0.01610081]
[1767085916019,0.01138718,87818.0,87809.0,0.01610081]
[1767085917152,0.02223705,87819.0,87809.0,0.01610081]
[1767085917365,0.02223705,87819.0,87809.0,0.53019711]
[1767085919411,0.0791728,87819.0,87809.0,0.01610081]
[1767085919591,0.02223705,87819.0,87809.0,0.53019711]
[1767085920424,0.01085,87819.0,87809.0,0.53019711]
[1767085921191,0.02223705,87819.0,87809.0,0.53019711]
[1767085921434,0.01085,87819.0,87809.0,0.53019711]
[1767085921634,0.02223705,87819.0,87809.0,0.53019711]
[1767085922219,0.01085,87819.0,87809.0,0.54158546]
[1767085922627,0.01085,87819.0,87810.0,0.01138822]
[1767085923179,0.01138718,87818.0,87809.0,0.01610081]
[1767085923413,0.01138718,87818.0,87809.0,0.53019711]
[1767085924128,0.02223705,87819.0,87809.0,0.53019711]
[1767085925072,0.01085,87819.0,87809.0,0.53019711]
[1767085925273,0.01085,87819.0,87809.0,0.54158546]
[1767085925634,0.01085,87819.0,87809.0,0.53019711]
[1767085926660,0.01085,87819.0,87809.0,0.01610081]
[1767085926804,0.02223705,87819.0,87809.0,0.53019711]
[1767085927418,0.01085,87819.0,87809.0,0.54158546]
[1767085928867,0.01085,87819.0,87809.0,0.53019711]
[1767085929992,0.01085,87819.0,87809.0,0.54158546]
[1767085930207,0.01085,87819.0,87809.0,0.01610081]
[1767085930417,0.01138718,87818.0,87809.0,0.53019711]
[1767085930721,0.01138731,87817.0,87809.0,0.53019711]
[1767085930841,0.01138718,87818.0,87809.0,0.53019711]
[1767085931454,0.02223705,87819.0,87809.0,0.53019711]
[1767085932968,0.02223705,87819.0,87809.0,0.01610081]
[1767085933241,0.02223705,87819.0,87809.0,0.53019711]
[1767085933402,0.01085,87819.0,87809.0,0.53019711]
[1767085934301,0.01085,87819.0,87809.0,0.01610081]
[1767085934504,0.01085,87819.0,87809.0,0.54158546]
[1767085935108,0.01085,87819.0,87809.0,0.53019711]
[1767085935684,0.02223705,87819.0,87809.0,0.53019711]
[1767085936135,0.01138718,87818.0,87809.0,0.53019711]
[1767085936333,0.02223705,87819.0,87809.0,0.53019711]
[1767085937546,0.01138718,87818.0,87809.0,0.53019711]
[1767085938274,0.01138718,87818.0,87809.0,0.01610081]
[1767085939277,0.02223705,87819.0,87809.0,0.01610081]
[1767085939480,0.01085,87819.0,87809.0,0.01610081]
[1767085939804,0.02223705,87819.0,87809.0,0.01610081]
[1767085940222,0.01138718,87818.0,87809.0,0.01610081]
[1767085940457,0.01138731,87817.0,87809.0,0.01610081]
[1767085940913,0.01138718,87818.0,87809.0,0.01610081]
[1767085941084,0.01138744,87816.0,87809.0,0.01610081]
[1767085941286,0.01138718,87818.0,87809.0,0.01610081]
[1767085942450,0.02223705,87819.0,87809.0,0.01610081]
[1767085942629,0.01138718,87818.0,87809.0,0.01610081]
[1767085942834,0.01138731,87817.0,87809.0,0.01610081]
[1767085943011,0.01138718,87818.0,87809.0,0.01610081]
[1767085943210,0.02223705,87819.0,87809.0,0.01610081]
[1767085943414,0.01085,87819.0,87809.0,0.53019711]
[1767085943835,0.01138718,87818.0,87809.0,0.53019711]
[1767085944232,0.02223705,87819.0,87809.0,0.53019711]
[1767085945072,0.01085,87819.0,87809.0,0.53019711]
[1767085945199,0.01085,87819.0,87809.0,0.54158546]
[1767085945394,0.01085,87819.0,87809.0,0.53019711]
[1767085945595,0.01085,87819.0,87809.0,0.54158546]
[1767085945913,0.01085,87819.0,87810.0,0.01138822]
[1767085946311,0.05693016,87827.0,87810.0,0.01138822]
[1767085946312,0.0114,87820.0,87819.0,0.000549]
[1767085946879,0.0114,87820.0,87813.0,0.01138783]
[1767085947237,0.0114,87820.0,87812.0,0.01138796]
[1767085947440,0.0114,87820.0,87811.0,0.01138809]
[1767085947765,0.02278692,87820.0,87810.0,0.5140963]
[1767085948070,0.0114,87820.0,87810.0,0.5140963]
[1767085948845,0.0114,87820.0,87810.0,0.52548452]
[1767085949222,0.0114,87820.0,87810.0,0.5140963]
[1767085949424,0.02278692,87820.0,87809.0,0.01610081]
[1767085949662,0.02278692,87820.0,87810.0,0.5140963]
[1767085949864,0.0114,87820.0,87810.0,0.5140963]
[1767085950065,0.0114,87820.0,87810.0,0.52548452]
[1767085950270,0.0114,87820.0,87811.0,0.01138809]
[1767085950474,0.0114,87820.0,87810.0,0.01138822]
[1767085950709,0.0114,87820.0,87810.0,0.52548452]
[1767085950936,0.0114,87820.0,87810.0,0.5140963]
[1767085951137,0.0114,87820.0,87809.0,0.02748916]
[1767085951138,0.01138757,87815.0,87809.0,0.01610081]
[1767085951385,0.01138744,87816.0,87809.0,0.01610081]
[1767085952542,0.01138796,87812.0,87809.0,0.01555081]
[1767085952854,0.01138822,87810.0,87807.0,0.0001479]
[1767085953058,0.01138822,87810.0,87795.0,0.01139017]
[1767085953306,0.01138822,87810.0,87800.0,0.5140963]
[1767085953307,0.01138861,87807.0,87800.0,0.5140963]
[1767085953436,0.01138861,87807.0,87797.0,0.0114]
[1767085953437,0.01138861,87807.0,87797.0,0.5254963]
[1767085954230,0.01138874,87806.0,87797.0,0.5254963]
[1767085954478,0.01138861,87807.0,87797.0,0.5254963]
[1767085954684,0.01138874,87806.0,87797.0,0.5254963]
[1767085955671,0.01138874,87806.0,87792.0,0.02279055]
[1767085955876,0.01138887,87805.0,87794.0,0.0113903]
[1767085956073,0.01138848,87808.0,87795.0,0.5140963]
[1767085956291,0.01138874,87806.0,87798.0,0.5140963]
[1767085956646,0.01138874,87806.0,87796.0,0.5140963]
[1767085956971,0.01138835,87809.0,87796.0,0.5140963]
[1767085957172,0.01138848,87808.0,87799.0,0.5140963]
[1767085957367,0.01138835,87809.0,87799.0,0.5140963]
[1767085957621,0.01138848,87808.0,87799.0,0.5140963]
[1767085957778,0.01138861,87807.0,87799.0,0.5140963]
[1767085958236,0.01138848,87808.0,87799.0,0.5140963]
[1767085958803,0.01138861,87807.0,87799.0,0.5140963]
[1767085959731,0.01138861,87807.0,87797.0,0.5140963]
[1767085959953,0.01138848,87808.0,87797.0,0.5140963]
[1767085960146,0.01138861,87807.0,87797.0,0.5140963]
[1767085960348,0.01138874,87806.0,87797.0,0.5140963]
[1767085960551,0.01138848,87808.0,87797.0,0.52548621]
[1767085960865,0.01138835,87809.0,87797.0,0.52548621]
[1767085961096,0.01138835,87809.0,87799.0,0.5140963]
[1767085961427,0.01149563,87810.0,87799.0,0.5140963]
[1767085961626,0.01138835,87809.0,87799.0,0.5140963]
[1767085961830,0.01138887,87805.0,87799.0,0.5140963]
[1767085962055,0.01138887,87805.0,87793.0,0.01139042]
[1767085962258,0.01138874,87806.0,87793.0,0.01139042]
[1767085962460,0.01138887,87805.0,87793.0,0.01139042]
[1767085962665,0.01138887,87805.0,87794.0,0.0113903]
[1767085963066,0.01138887,87805.0,87793.0,0.01139042]
[1767085963287,0.01138887,87805.0,87795.0,0.5140963]
[1767085963493,0.01138874,87806.0,87795.0,0.5140963]
[1767085964522,0.01138874,87806.0,87795.0,0.52548647]
[1767085964734,0.01138874,87806.0,87795.0,0.01139017]
[1767085965236,0.01138874,87806.0,87792.0,0.02279055]
[1767085965543,0.01138874,87806.0,87793.0,0.01139042]
[1767085966065,0.01138887,87805.0,87792.0,0.02279055]
[1767085966222,0.011389,87804.0,87792.0,0.02279055]
[1767085966770,0.01138887,87805.0,87793.0,0.01139042]
[1767085966973,0.01138887,87805.0,87794.0,0.0113903]
[1767085967212,0.01138887,87805.0,87793.0,0.01139042]
[1767085967413,0.011389,87804.0,87792.0,0.0114]
[1767085967574,0.011389,87804.0,87793.0,0.01139042]
[1767085967775,0.01138913,87803.0,87792.0,0.02279055]
[1767085968021,0.01138913,87803.0,87792.0,0.0114]
[1767085968215,0.01138939,87801.0,87792.0,0.0114]
[1767085968443,0.01138926,87802.0,87792.0,0.0114]
[1767085968797,0.01138913,87803.0,87792.0,0.0114]
[1767085968999,0.01138913,87803.0,87792.0,0.02279055]
[1767085969320,0.011389,87804.0,87792.0,0.02279055]
[1767085969524,0.01138913,87803.0,87792.0,0.02279055]
[1767085970269,0.01138913,87803.0,87792.0,0.0114]
[1767085971751,0.0683348,87803.0,87790.0,0.52566851]
[1767085972092,0.01138926,87802.0,87791.0,0.01139068]
[1767085972294,0.01138913,87803.0,87792.0,0.01139055]
[1767085972613,0.011389,87804.0,87792.0,0.01139055]
[1767085973133,0.01138913,87803.0,87791.0,0.01139068]
[1767085973352,0.01138835,87809.0,87803.0,0.000549]
[1767085973665,0.01138874,87806.0,87803.0,0.000549]
[1767085973882,0.01138913,87803.0,87792.0,0.01139055]
[1767085974094,0.011389,87804.0,87792.0,0.01139055]
[1767085974685,0.01138926,87802.0,87790.0,0.52566851]
[1767085974895,0.01138913,87803.0,87792.0,0.01139055]
[1767085975478,0.01138913,87803.0,87791.0,0.01139068]
[1767085976014,0.01138926,87802.0,87790.0,0.53706851]
[1767085976239,0.01138913,87803.0,87792.0,0.01139055]
[1767085976445,0.01138913,87803.0,87791.0,0.01139068]
[1767085976627,0.01138913,87803.0,87792.0,0.01139055]
[1767085976847,0.011389,87804.0,87793.0,0.01139042]
[1767085977050,0.011389,87804.0,87792.0,0.01139055]
[1767085977349,0.01138913,87803.0,87791.0,0.01139068]
[1767085977492,0.01138913,87803.0,87790.0,0.53706851]
[1767085977690,0.01138939,87801.0,87790.0,0.5256777]
[1767085977892,0.01139055,87792.0,87789.0,0.0001479]
[1767085978440,0.05695344,87791.0,87789.0,0.0001479]
[1767085978800,0.01139055,87792.0,87789.0,0.0001479]
[1767085980758,0.05695344,87791.0,87789.0,0.0001479]
[1767085980929,0.05695344,87791.0,87778.0,0.0114]
[1767085980930,0.0113912,87787.0,87778.0,0.0114]
[1767085981108,0.01139107,87788.0,87778.0,0.0114]
[1767085981341,0.0113912,87787.0,87776.0,3.365e-05]
[1767085981552,0.01139172,87783.0,87776.0,3.365e-05]
[1767085982109,0.01139159,87784.0,87776.0,3.365e-05]
[1767085982296,0.01139146,87785.0,87776.0,3.365e-05]
[1767085982698,0.0113912,87787.0,87776.0,3.365e-05]
[1767085982923,0.02279094,87789.0,87776.0,3.365e-05]
[1767085983073,0.0113912,87787.0,87776.0,0.01142628]
[1767085983240,0.01139107,87788.0,87777.0,0.0113925]
[1767085983441,0.01139107,87788.0,87776.0,0.01142628]
[1767085983882,0.0113912,87787.0,87776.0,3.365e-05]
[1767085984320,0.01139107,87788.0,87787.0,0.000549]
[1767085984524,0.01139107,87788.0,87776.0,0.01142628]
[1767085984704,0.0113912,87787.0,87776.0,3.365e-05]
[1767085985524,0.01139107,87788.0,87776.0,3.365e-05]
[1767085986114,0.0113912,87787.0,87776.0,0.01142628]
[1767085986345,0.0113912,87787.0,87776.0,3.365e-05]
[1767085986530,0.01139107,87788.0,87776.0,3.365e-05]
[1767085986736,0.06846272,87789.0,87788.0,0.000549]
[1767085986737,0.01150737,87789.0,87788.0,0.000549]
[1767085986944,0.02289831,87789.0,87788.0,0.000549]
[1767085987143,0.01150737,87789.0,87778.0,0.01139237]
[1767085987486,0.01150737,87789.0,87777.0,0.0113925]
[1767085987713,0.02289831,87789.0,87778.0,0.01139237]
[1767085987966,0.01150737,87789.0,87778.0,0.01139237]
[1767085988726,0.01150737,87789.0,87779.0,0.01139224]
[1767085988910,0.01150737,87789.0,87778.0,0.01139237]
[1767085989497,0.0114,87790.0,87779.0,0.05696123]
[1767085989770,0.0114,87790.0,87779.0,0.01149961]
[1767085989997,0.0114,87790.0,87780.0,0.01139211]
[1767085990770,0.0114,87790.0,87779.0,0.01149961]
[1767085991006,0.0114,87790.0,87780.0,0.5142777]
[1767085991232,0.0114,87790.0,87781.0,0.01139198]
[1767085991653,0.0114,87790.0,87780.0,0.01139211]
[1767085992000,0.01085,87790.0,87782.0,0.01139185]
[1767085992311,0.01085,87790.0,87781.0,0.01139198]
[1767085992851,0.01085,87790.0,87784.0,0.01139159]
[1767085993057,0.01085,87790.0,87783.0,0.01139172]
[1767085994038,0.01138952,87800.0,87787.0,0.0113912]
[1767085994219,0.0114,87796.0,87788.0,0.01139107]
[1767085994423,0.0114,87796.0,87785.0,0.01139146]
[1767085994659,0.0114,87796.0,87787.0,0.0113912]
[1767085995084,0.0114,87796.0,87788.0,0.01139107]
[1767085995376,0.0114,87796.0,87786.0,0.01139133]
[1767085995586,0.02279004,87796.0,87784.0,0.01139159]
[1767085995879,0.0114,87796.0,87786.0,0.01139133]
[1767085996086,0.0114,87796.0,87785.0,0.01139146]
[1767085996236,0.0114,87796.0,87786.0,0.01139133]
[1767085996678,0.01139017,87795.0,87783.0,0.01139172]
[1767085996885,0.01139017,87795.0,87745.0,0.45601083]
[1767085996886,0.000549,87786.0,87778.0,0.01139237]
[1767085997086,0.01139055,87792.0,87781.0,0.01139198]
[1767085997291,0.02958711,87794.0,87781.0,0.01139198]
[1767085997523,0.01139042,87793.0,87781.0,0.01139198]
[1767085998070,0.01819681,87794.0,87782.0,0.01139185]
[1767085998557,0.01819681,87794.0,87779.0,0.00010737]
[1767085998558,0.000549,87782.0,87779.0,0.00010737]
[1767085999170,0.0113912,87787.0,87779.0,0.00010737]
[1767085999413,0.01139094,87789.0,87779.0,0.00010737]
[1767086000487,0.01139107,87788.0,87779.0,0.00010737]
[1767086001196,0.0113912,87787.0,87779.0,0.00010737]
[1767086001534,0.01139107,87788.0,87779.0,0.00010737]
[1767086001763,0.01139094,87789.0,87779.0,0.00010737]
[1767086002296,0.01139107,87788.0,87779.0,0.00010737]
[1767086002498,0.01139094,87789.0,87779.0,0.00010737]
[1767086003070,0.02279094,87789.0,87779.0,0.00010737]
[1767086003263,0.01139107,87788.0,87779.0,0.00010737]
[1767086004067,0.01139107,87788.0,87779.0,3.7e-07]
[1767086005540,0.0114,87789.0,87779.0,3.7e-07]
[1767086005718,0.02279094,87789.0,87779.0,3.7e-07]
[1767086005919,0.0114,87789.0,87779.0,3.7e-07]
[1767086006457,0.01139107,87788.0,87779.0,3.7e-07]
[1767086007193,0.0114,87789.0,87779.0,3.7e-07]
[1767086007474,0.02279094,87789.0,87779.0,3.7e-07]
[1767086008190,0.0114,87789.0,87779.0,3.7e-07]
[1767086008906,0.0114,87789.0,87779.0,0.01139261]
[1767086009265,0.0114,87789.0,87779.0,0.05696147]
[1767086009469,0.0114,87789.0,87779.0,0.01139261]
[1767086009672,0.0114,87789.0,87779.0,3.7e-07]
[1767086010872,0.0114,87789.0,87779.0,0.52567031]
[1767086011167,0.0114,87789.0,87779.0,0.51427807]
[1767086011335,0.0114,87789.0,87779.0,0.01139261]
[1767086011798,0.0114,87789.0,87779.0,3.7e-07]
[1767086012000,0.0114,87789.0,87780.0,0.01139211]
[1767086012200,0.0114,87789.0,87781.0,0.01139198]
[1767086012734,0.0114,87789.0,87782.0,0.01139185]
[1767086012954,0.0114,87789.0,87781.0,0.01139198]
[1767086013862,0.0114,87789.0,87782.0,0.01139185]
[1767086014334,0.0114,87789.0,87784.0,0.01139159]
[1767086014497,0.011293,87789.0,87785.0,0.01139146]
[1767086014696,0.011293,87789.0,87784.0,0.01139159]
[1767086014895,0.011293,87789.0,87785.0,0.01139146]
[1767086015120,0.011293,87789.0,87784.0,0.01139159]
[1767086015445,0.011293,87789.0,87783.0,0.01139172]
[1767086015626,0.011293,87789.0,87782.0,0.01139185]
[1767086016021,0.011293,87789.0,87783.0,0.01139172]
[1767086016439,0.011293,87789.0,87784.0,0.01139159]
[1767086016647,0.011293,87789.0,87783.0,0.01139172]
[1767086018083,0.011293,87789.0,87782.0,0.01139185]
[1767086018439,0.011293,87789.0,87783.0,0.01139172]
[1767086018636,0.011293,87789.0,87780.0,0.05696045]
[1767086018868,0.011293,87789.0,87782.0,0.01139185]
[1767086019075,0.011293,87789.0,87779.0,0.51427807]
[1767086019245,0.000549,87782.0,87779.0,3.7e-07]
[1767086019586,0.01139107,87788.0,87779.0,3.7e-07]
[1767086019728,0.0113912,87787.0,87779.0,3.7e-07]
[1767086019927,0.01139107,87788.0,87779.0,3.7e-07]
[1767086020573,0.011293,87789.0,87780.0,0.01139211]
[1767086020772,0.011293,87789.0,87781.0,0.01139198]
[1767086020950,0.011293,87789.0,87784.0,0.01139159]
[1767086021358,0.011293,87789.0,87786.0,0.01139133]
[1767086021941,0.011293,87789.0,87785.0,0.01139146]
[1767086022562,0.011293,87789.0,87786.0,0.01139133]
[1767086024052,0.011293,87789.0,87787.0,0.05695604]
[1767086024855,0.0001479,87802.0,87793.0,0.01139042]
[1767086025061,0.0114,87798.0,87795.0,0.01139017]
[1767086025236,0.0001479,87802.0,87797.0,0.01138991]
[1767086025437,0.01066804,87801.0,87797.0,0.01138991]
[1767086025617,0.01066804,87800.0,87795.0,0.01139017]
[1767086025815,0.0001479,87802.0,87795.0,0.01139017]
[1767086025816,0.01066804,87799.0,87795.0,0.01139017]
[1767086026053,0.0001479,87802.0,87796.0,0.01139004]
[1767086026200,0.01066832,87801.0,87795.0,0.01139017]
[1767086026404,0.01066832,87800.0,87796.0,0.01139004]
[1767086026648,0.01066832,87799.0,87795.0,0.01139017]
[1767086026859,0.0001479,87802.0,87795.0,0.01139017]
[1767086027125,0.01066814,87801.0,87795.0,0.01139017]
[1767086027426,0.01066814,87800.0,87795.0,0.01139017]
[1767086027623,0.01066814,87799.0,87795.0,0.01139017]
[1767086027820,0.0001479,87802.0,87797.0,0.01138991]
[1767086028022,0.01066751,87801.0,87796.0,0.01139004]
[1767086028245,0.01066751,87800.0,87796.0,0.01139004]
[1767086028426,0.0001479,87802.0,87796.0,0.01139004]
[1767086028607,0.01066695,87801.0,87796.0,0.01139004]
[1767086028784,0.01066695,87800.0,87796.0,0.01139004]
[1767086028989,0.0001479,87802.0,87798.0,0.01138978]
[1767086029187,0.01066674,87801.0,87797.0,0.01138991]
[1767086029393,0.0001479,87802.0,87799.0,0.01138965]
[1767086030031,0.0001479,87802.0,87798.0,0.01138978]
[1767086030232,0.0001479,87802.0,87797.0,0.01138991]
[1767086030470,0.0001479,87802.0,87798.0,0.01138978]
[1767086031364,0.0001479,87802.0,87799.0,0.01138965]
[1767086032811,0.0001479,87802.0,87798.0,0.01138978]
[1767086034706,0.0001479,87802.0,87799.0,0.01138965]
[1767086035171,0.0001479,87802.0,87797.0,0.01138991]